bitfinex/quotes_ETHUSD_20240610
["timestamp","ask_amount","ask_price","bid_price","bid_amount"]
[1718025982891,0.802,3672.8,3672.5,2.72293]
[1718025983092,0.08269389,3672.7,3672.5,2.72293]
[1718025983336,0.802,3672.8,3672.5,2.72293]
[1718025983530,0.08269389,3672.6,3672.5,2.72293]
[1718025983731,0.802,3672.8,3672.5,2.72293]
[1718025983917,0.08269389,3672.7,3672.5,2.72293]
[1718025984117,0.802,3672.8,3672.5,2.72293]
[1718025984319,0.08269389,3672.7,3672.5,2.72293]
[1718025984543,0.802,3672.8,3672.5,2.72293]
[1718025984729,0.08269389,3672.6,3672.5,2.72293]
[1718025984941,0.802,3672.8,3672.5,2.72293]
[1718025985147,0.08269389,3672.6,3672.5,2.72293]
[1718025985447,0.802,3672.8,3672.5,2.72293]
[1718025985655,0.08269389,3672.6,3672.5,2.72293]
[1718025985851,0.802,3672.8,3672.5,2.72293]
[1718025986033,0.08269389,3672.6,3672.5,2.72293]
[1718025986553,0.802,3672.8,3672.5,2.72293]
[1718025986765,0.08269389,3672.6,3672.5,2.72293]
[1718025986975,0.802,3672.8,3672.5,2.72293]
[1718025987272,0.08269389,3672.6,3672.5,2.72293]
[1718025987493,3.9439,3673.1,3672.7,2.72273]
[1718025987816,0.08278046,3673.0,3672.7,2.72273]
[1718025988359,3.9439,3673.1,3672.7,2.72273]
[1718025989626,3.9439,3673.1,3672.4,0.85543348]
[1718025989627,3.9439,3673.1,3672.9,2.72264]
[1718025990057,0.08278046,3673.0,3672.9,2.72264]
[1718025991436,0.88478046,3673.0,3672.9,2.72264]
[1718025992152,1.36764851,3673.0,3672.9,2.72264]
[1718025993168,1.36764851,3673.0,3672.7,2.72279]
[1718025997882,0.88478046,3673.0,3672.7,2.72279]
[1718025998182,0.802,3673.0,3672.7,2.72279]
[1718026003387,0.08295359,3672.9,3672.7,2.72279]
[1718026003595,0.802,3673.0,3672.7,2.72279]
[1718026004285,0.08295936,3672.9,3672.7,2.72279]
[1718026004690,0.802,3673.0,3672.7,2.72279]
[1718026009727,0.08295936,3672.9,3672.7,2.72279]
[1718026009929,4.7459,3673.1,3672.7,2.72279]
[1718026010204,0.08295936,3673.0,3672.7,2.72279]
[1718026024247,6.83005,3673.3,3672.7,2.72279]
[1718026024475,0.0829882,3672.9,3672.7,2.72279]
[1718026024683,0.802,3673.2,3672.7,2.72279]
[1718026024886,0.0829882,3672.8,3672.7,2.72279]
[1718026025052,0.802,3673.2,3672.7,2.72279]
[1718026025594,0.0829882,3673.1,3672.7,2.72279]
[1718026027387,0.802,3673.2,3672.7,2.72279]
[1718026027966,0.08302283,3673.1,3672.7,2.72279]
[1718026041439,0.802,3673.2,3672.7,2.72279]
[1718026041644,0.08299396,3673.0,3672.7,2.72279]
[1718026041940,0.08299396,3672.9,3672.7,2.72279]
[1718026042142,0.802,3673.2,3672.7,2.72279]
[1718026042343,0.08299396,3673.1,3672.7,2.72279]
[1718026045718,3.52435,3673.3,3672.8,3.7548]
[1718026045912,0.08302283,3673.2,3672.8,3.7548]
[1718026046252,8.1676,3673.2,3672.8,3.7548]
[1718026046418,0.08302283,3673.1,3672.8,3.7548]
[1718026066553,0.08302283,3673.1,3672.8,6.47745]
[1718026072342,0.08302283,3673.1,3673.0,7.52047]
[1718026072551,0.08302283,3673.1,3673.0,8.66137809]
[1718026072867,0.08302283,3673.1,3673.0,7.52047]
[1718026073032,0.08302283,3673.1,3673.0,8.94919979]
[1718026073228,0.08302283,3673.1,3673.0,7.52047]
[1718026073528,0.08302283,3673.1,3673.0,9.63207462]
[1718026074148,0.08302283,3673.1,3673.0,8.83007462]
[1718026074348,0.08302283,3673.1,3673.0,7.68783019]
[1718026075256,0.08302283,3673.1,3673.0,8.54412751]
[1718026076263,0.08302283,3673.1,3673.0,4.54822751]
[1718026076575,0.08302283,3673.1,3673.0,2.72257]
[1718026099263,4.78232283,3673.1,3672.8,2.72271]
[1718026099553,3.98032283,3673.1,3672.8,2.72271]
[1718026111029,0.802,3673.0,3672.5,3.57916732]
[1718026111370,0.802,3672.8,3672.5,2.72287]
[1718026111851,0.083444,3672.7,3672.5,2.72287]
[1718026112205,0.802,3672.8,3672.5,2.72287]
[1718026112431,0.083444,3672.6,3672.5,2.72287]
[1718026112623,0.802,3672.8,3672.5,2.72287]
[1718026112826,0.083444,3672.6,3672.5,2.72287]
[1718026113035,0.802,3672.8,3672.5,2.72287]
[1718026113241,0.083444,3672.6,3672.5,2.72287]
[1718026113436,0.802,3672.8,3672.5,2.72287]
[1718026113608,0.083444,3672.6,3672.5,2.72287]
[1718026113809,0.802,3672.8,3672.5,2.72287]
[1718026114034,0.083444,3672.6,3672.5,2.72287]
[1718026114207,0.802,3672.8,3672.5,2.72287]
[1718026114419,0.083444,3672.6,3672.5,2.72287]
[1718026114627,0.802,3672.8,3672.5,2.72287]
[1718026115137,0.083444,3672.7,3672.5,2.72287]
[1718026115330,0.802,3672.8,3672.5,2.72287]
[1718026115535,0.083444,3672.6,3672.5,2.72287]
[1718026115740,0.802,3672.8,3672.5,2.72287]
[1718026115926,0.083444,3672.6,3672.5,2.72287]
[1718026116131,0.802,3672.8,3672.5,2.72287]
[1718026116431,0.083444,3672.6,3672.5,2.72287]
[1718026116912,0.802,3672.8,3672.5,2.72287]
[1718026117108,0.083444,3672.6,3672.5,2.72287]
[1718026117361,0.802,3672.8,3672.5,2.72287]
[1718026117533,0.083444,3672.6,3672.5,2.72287]
[1718026117731,0.802,3672.8,3672.5,2.72287]
[1718026117929,0.083444,3672.6,3672.5,2.72287]
[1718026118112,0.802,3672.8,3672.5,2.72287]
[1718026118313,0.083444,3672.6,3672.5,2.72287]
[1718026118553,0.802,3672.8,3672.5,2.72287]
[1718026118762,0.083444,3672.6,3672.5,2.72287]
[1718026118930,0.802,3672.8,3672.5,2.72287]
[1718026119118,0.083444,3672.6,3672.5,2.72287]
[1718026119318,0.802,3672.8,3672.5,2.72287]
[1718026119522,0.083444,3672.6,3672.5,2.72287]
[1718026119774,0.802,3672.8,3672.5,2.72287]
[1718026119978,0.083444,3672.6,3672.5,2.72287]
[1718026120258,0.802,3672.8,3672.5,2.72287]
[1718026120427,0.083444,3672.6,3672.5,2.72287]
[1718026120625,0.802,3672.8,3672.5,2.72287]
[1718026120836,0.083444,3672.6,3672.5,2.72287]
[1718026121032,0.802,3672.8,3672.5,2.72287]
[1718026121555,0.083444,3672.7,3672.5,2.72287]
[1718026121864,0.802,3672.8,3672.5,2.72287]
[1718026122069,0.083444,3672.6,3672.5,2.72287]
[1718026122283,0.802,3672.8,3672.5,2.72287]
[1718026122569,0.083444,3672.6,3672.5,2.72287]
[1718026122780,0.802,3672.8,3672.5,2.72287]
[1718026122925,0.083444,3672.6,3672.5,2.72287]
[1718026123125,0.802,3672.8,3672.5,2.72287]
[1718026123441,0.083444,3672.6,3672.5,2.72287]
[1718026123638,0.802,3672.8,3672.5,2.72287]
[1718026123853,0.083444,3672.6,3672.5,2.72287]
[1718026124048,0.802,3672.8,3672.5,2.72287]
[1718026124249,0.083444,3672.6,3672.5,2.72287]
[1718026124453,3.8822,3672.7,3672.5,2.72287]
[1718026124632,0.083444,3672.6,3672.5,2.72287]
[1718026128956,0.885444,3672.6,3672.1,2.72319]
[1718026129179,0.802,3672.4,3672.1,2.72319]
[1718026131765,3.9504,3672.3,3672.1,2.72319]
[1718026131929,4.03332474,3672.3,3672.1,2.72319]
[1718026132568,0.802,3672.2,3671.8,2.72338]
[1718026137654,0.0829478,3672.1,3671.8,2.72338]
[1718026139042,0.0829478,3672.1,3671.9,2.72331]
[1718026148355,0.802,3672.0,3671.7,2.72352]
[1718026148559,4.6052074,3672.0,3671.7,2.72352]
[1718026150599,0.802,3671.8,3671.3,2.72382]
[1718026150897,0.802,3671.6,3671.3,2.72382]
[1718026151400,0.08243419,3671.5,3671.3,2.72382]
[1718026151574,0.802,3671.4,3671.2,0.01735324]
[1718026151758,0.88442265,3671.4,3671.2,0.01735324]
[1718026151957,1.34958492,3671.4,3671.2,0.01735324]
[1718026152159,3.7881,3671.3,3671.2,0.01735324]
[1718026152470,3.87036105,3671.3,3671.2,0.01735324]
[1718026154111,3.87036105,3671.3,3670.9,7.003]
[1718026154304,3.87036105,3671.3,3670.9,9.7271]
[1718026154510,0.802,3671.2,3670.9,9.7271]
[1718026154672,0.88397238,3671.2,3670.9,9.7271]
[1718026157905,0.88397238,3671.2,3670.9,2.7241]
[1718026158287,0.802,3671.2,3670.9,2.7241]
[1718026160507,3.7881,3671.3,3670.4,10.805]
[1718026160711,2.72359,3671.7,3671.1,2.72396]
[1718026161011,0.08201282,3671.2,3671.1,2.72396]
[1718026161315,0.802,3671.6,3671.1,2.72396]
[1718026161605,0.08201282,3671.5,3671.1,2.72396]
[1718026163521,4.7196,3671.6,3671.1,2.72396]
[1718026163767,4.7196,3671.6,3671.3,2.72379]
[1718026164220,0.08201282,3671.5,3671.3,2.72379]
[1718026164783,0.802,3671.7,3671.3,2.72379]
[1718026165022,0.08209942,3671.4,3671.3,2.72379]
[1718026165202,0.802,3671.7,3671.3,2.72379]
[1718026165379,0.08209942,3671.4,3671.3,2.72379]
[1718026165595,0.802,3671.7,3671.3,2.72379]
[1718026165795,0.08209942,3671.4,3671.3,2.72379]
[1718026165998,0.802,3671.7,3671.3,2.72379]
[1718026166205,0.08213982,3671.6,3671.3,2.72379]
[1718026167733,3.7568,3671.5,3671.3,2.72379]
[1718026167884,4.5588,3671.5,3671.3,2.72379]
[1718026168083,4.64039519,3671.5,3671.3,2.72379]
[1718026169011,4.64039519,3671.5,3671.0,2.72398]
[1718026169407,4.5588,3671.5,3671.0,2.72398]
[1718026170405,0.08159519,3671.4,3671.0,2.72398]
[1718026170788,4.5588,3671.5,3671.0,2.72398]
[1718026175551,0.07910354,3671.4,3671.0,2.72398]
[1718026175746,4.5588,3671.5,3671.0,2.72398]
[1718026176651,4.4215,3671.2,3670.7,2.7242]
[1718026176852,0.802,3670.9,3670.7,2.7242]
[1718026177050,3.6195,3670.8,3670.7,2.7242]
[1718026177256,3.6195,3670.8,3670.7,5.7242]
[1718026177429,3.69860354,3670.8,3670.7,5.7242]
[1718026185441,0.07910354,3670.8,3670.7,5.7242]
[1718026185845,3.7357,3671.0,3670.7,5.7242]
[1718026186382,0.07883185,3670.9,3670.7,5.7242]
[1718026188295,8.1676,3671.4,3670.7,7.62721973]
[1718026188509,0.07890122,3670.8,3670.7,7.62721973]
[1718026188690,8.1676,3671.4,3671.2,2.72387]
[1718026189064,0.07890122,3671.3,3671.2,2.72387]
[1718026200201,0.07890122,3671.3,3670.9,0.85629732]
[1718026200202,4.06646134,3671.3,3670.9,0.85629732]
[1718026200381,4.462,3671.2,3670.9,0.85629732]
[1718026200581,4.462,3671.2,3670.7,3.85629732]
[1718026201015,4.462,3671.2,3670.7,3.0]
[1718026201177,3.66,3671.2,3670.7,3.0]
[1718026201374,4.462,3671.2,3670.7,3.0]
[1718026201683,0.802,3671.0,3670.7,3.0]
[1718026202380,3.5722,3670.9,3670.5,0.85629732]
[1718026202733,3.5722,3670.9,3670.3,0.85629732]
[1718026202734,0.802,3670.6,3670.3,0.85629732]
[1718026202904,0.802,3670.6,3670.2,0.85629732]
[1718026203210,0.802,3670.6,3670.0,3.58104732]
[1718026203416,1.511836,3670.6,3669.9,0.87365671]
[1718026203621,0.802,3670.1,3669.9,0.87365671]
[1718026203916,0.802,3670.1,3669.9,0.01735939]
[1718026204615,0.802,3670.1,3669.6,2.72508]
[1718026205324,3.6336,3670.2,3669.6,2.72508]
[1718026205478,0.802,3670.0,3669.6,2.72508]
[1718026206725,0.802,3670.0,3669.3,0.85629732]
[1718026206726,0.802,3669.7,3669.3,2.72527]
[1718026206929,0.802,3669.5,3669.3,2.72527]
[1718026207283,2.72487,3669.9,3669.3,2.72527]
[1718026207488,0.802,3669.6,3669.3,2.72527]
[1718026208080,3.7088,3669.7,3669.0,2.7255]
[1718026208290,0.802,3669.4,3669.0,2.7255]
[1718026209063,0.802,3669.2,3669.0,2.7255]
[1718026210176,0.802,3669.2,3668.7,2.72575]
[1718026210391,0.802,3669.0,3668.7,2.72575]
[1718026211083,0.802,3669.0,3668.5,3.0]
[1718026211675,3.641,3669.1,3668.6,2.72582]
[1718026211840,4.443,3669.1,3668.7,3.0]
[1718026213355,0.802,3668.9,3668.4,0.01694589]
[1718026214980,3.641,3669.1,3668.4,0.01694589]
[1718026215181,0.802,3669.0,3668.4,0.01694589]
[1718026215844,3.641,3669.1,3668.4,0.01694589]
[1718026216064,0.802,3669.0,3668.5,2.7259]
[1718026217359,0.07655147,3668.9,3668.5,2.7259]
[1718026217582,0.07655147,3668.9,3668.7,2.72571]
[1718026217769,0.07655147,3668.9,3668.7,3.52771]
[1718026217969,3.52711,3669.6,3668.9,2.72557]
[1718026217970,2.72511,3669.6,3668.9,2.72557]
[1718026218174,2.72511,3669.6,3668.6,3.6763]
[1718026218175,8.1676,3669.5,3668.6,3.6763]
[1718026218495,8.1676,3669.5,3669.3,2.72527]
[1718026224001,8.1676,3669.5,3669.3,6.42117]
[1718026224379,8.1676,3669.5,3669.4,3.0]
[1718026225982,3.6285,3671.2,3669.6,2.72506]
[1718026226190,3.6285,3671.2,3669.8,3.7871]
[1718026226513,0.07699709,3671.1,3669.9,0.95572009]
[1718026226673,0.07699709,3671.1,3669.9,3.95572009]
[1718026226868,3.6285,3671.2,3670.0,2.72475]
[1718026227081,3.6285,3671.2,3670.1,3.0]
[1718026227278,3.6285,3671.2,3670.1,3.45624621]
[1718026227279,0.07729792,3671.1,3670.1,3.45624621]
[1718026227673,0.07729792,3671.1,3670.6,2.7243]
[1718026227893,0.07729792,3671.1,3670.8,2.72414]
[1718026228189,6.50304,3671.6,3670.8,2.72414]
[1718026228368,0.07729792,3671.0,3670.8,2.72414]
[1718026228571,0.650304,3671.5,3670.8,2.72414]
[1718026228810,0.07729792,3670.9,3670.8,2.72414]
[1718026229301,0.650304,3671.5,3670.8,2.72414]
[1718026229471,0.07729792,3670.9,3670.8,2.72414]
[1718026229666,0.650304,3671.5,3670.8,2.72414]
[1718026229869,0.07729792,3670.9,3670.8,2.72414]
[1718026230082,0.4429704,3671.4,3670.8,2.72414]
[1718026230303,0.07750615,3670.9,3670.8,2.72414]
[1718026230505,3.7794,3671.6,3671.1,2.72391]
[1718026230776,3.4931,3672.7,3671.7,2.72348]
[1718026231202,3.4931,3672.7,3671.9,2.72332]
[1718026231429,0.621583,3672.6,3671.9,2.72332]
[1718026231978,0.621583,3672.6,3672.1,2.72317]
[1718026232181,2.72249,3673.1,3671.5,4.64861]
[1718026232382,2.72249,3673.1,3672.3,2.72301]
[1718026233705,2.72249,3673.1,3671.9,2.72331]
[1718026234771,2.72267,3672.9,3671.9,2.72331]
[1718026235009,5.6026,3673.2,3671.9,2.72331]
[1718026235010,2.72282,3672.7,3671.9,2.72331]
[1718026235223,2.72298,3672.5,3671.6,3.0]
[1718026235422,8.1688,3672.4,3671.6,3.0]
[1718026236223,2.72309,3672.3,3671.6,3.0]
[1718026236446,1.089189,3672.2,3671.6,3.0]
[1718026237079,8.1688,3672.1,3671.6,3.0]
[1718026237897,8.1688,3672.1,3671.2,2.72389]
[1718026238083,3.0662,3672.0,3671.2,2.72389]
[1718026238404,3.0662,3672.0,3670.9,3.0]
[1718026238405,8.1688,3671.9,3670.9,2.72412]
[1718026238595,8.1688,3671.9,3670.8,0.00182504]
[1718026238596,9.6735489,3671.9,3670.8,0.00182504]
[1718026239031,2.72361,3671.6,3670.8,0.00182504]
[1718026239189,8.441161,3671.5,3670.8,0.00182504]
[1718026239892,0.07877858,3671.4,3670.8,0.00182504]
[1718026240425,8.1688,3671.3,3670.8,0.00182504]
[1718026240925,0.07831599,3671.2,3670.8,0.00182504]
[1718026241298,8.1688,3671.3,3670.8,0.00182504]
[1718026241495,0.07831599,3671.1,3670.8,0.00182504]
[1718026241737,8.1688,3671.3,3670.8,0.00182504]
[1718026242034,0.07820032,3671.0,3670.8,0.00182504]
[1718026242240,9.2852771,3671.3,3670.8,0.00182504]
[1718026242531,0.07820032,3670.9,3670.8,0.00182504]
[1718026242752,9.2852771,3671.3,3670.8,0.00182504]
[1718026243037,0.07820032,3670.9,3670.8,0.00182504]
[1718026243194,9.2852771,3671.3,3670.8,0.00182504]
[1718026243389,0.07820032,3670.9,3670.8,0.00182504]
[1718026244203,8.1688,3671.3,3670.8,0.00182504]
[1718026244392,0.07820032,3670.9,3670.8,0.00182504]
[1718026244622,8.1688,3671.3,3670.8,0.00182504]
[1718026244805,0.07820032,3670.9,3670.8,0.00182504]
[1718026245018,8.1688,3671.3,3670.8,0.00182504]
[1718026245194,0.07820032,3670.9,3670.8,0.00182504]
[1718026245701,0.07820032,3670.9,3670.0,2.72476]
[1718026245702,2.80237032,3670.9,3670.0,2.72476]
[1718026245892,10.97117032,3670.9,3670.0,2.72476]
[1718026246101,1.28961703,3670.8,3670.0,2.72476]
[1718026246418,8.1688,3670.7,3670.0,2.72476]
[1718026247027,10.89312,3670.7,3669.7,2.72498]
[1718026247201,3.0375,3670.5,3669.7,2.72498]
[1718026247391,8.1688,3670.4,3669.7,2.72498]
[1718026247728,8.82591003,3670.4,3669.7,2.72498]
[1718026248094,8.82591003,3670.4,3669.8,3.0]
[1718026249533,8.82591003,3670.4,3669.4,5.72702574]
[1718026250839,8.82591003,3670.4,3669.6,2.72505]
[1718026251030,8.24639879,3670.4,3669.7,3.0]
[1718026256352,2.72457,3670.3,3669.4,0.00182574]
[1718026256557,3.1275,3670.0,3669.4,0.00182574]
[1718026256764,3.1275,3670.0,3669.3,2.72527]
[1718026256765,8.1688,3669.9,3669.3,2.72527]
[1718026257064,8.24577975,3669.9,3669.3,2.72527]
[1718026257566,8.24577975,3669.9,3669.0,2.72549]
[1718026257567,12.38048273,3669.9,3669.0,2.72549]
[1718026258064,12.38048273,3669.9,3669.1,3.0]
[1718026258583,14.30548273,3669.9,3669.1,3.0]
[1718026260033,2.72504,3669.7,3669.1,3.0]
[1718026260369,9.67569961,3669.6,3669.1,3.0]
[1718026261470,8.24513734,3669.6,3669.1,3.0]
[1718026262882,8.24513734,3669.6,3668.7,2.72573]
[1718026263064,8.24513734,3669.6,3668.8,3.0]
[1718026263384,2.7252,3669.5,3668.8,3.0]
[1718026263692,2.80138106,3669.5,3668.8,3.0]
[1718026267551,2.80018106,3669.5,3668.8,3.0]
[1718026268993,3.4492,3669.4,3668.8,3.0]
[1718026269410,0.0761058,3669.3,3668.8,3.0]
[1718026272513,2.72542,3669.2,3668.8,3.0]
[1718026272729,2.72542,3669.2,3668.3,2.72601]
[1718026272730,2.72558,3669.0,3668.3,2.72601]
[1718026272964,2.69758,3669.0,3668.3,2.72601]
[1718026273320,0.07593214,3668.9,3668.3,2.72601]
[1718026288165,0.0744668,3668.5,3668.0,5.72621]
[1718026290459,0.0744668,3668.5,3667.8,0.00182653]
[1718026290671,3.6521,3668.4,3667.8,3.00182653]
[1718026290855,0.07415114,3668.3,3667.8,3.00182653]
[1718026292198,2.72614,3668.2,3667.8,3.00182653]
[1718026292354,3.37137911,3668.2,3667.8,0.00182653]
[1718026292696,3.37137911,3668.2,3667.1,2.72689]
[1718026292697,3.4859,3667.9,3667.1,2.72689]
[1718026292914,0.07384985,3667.8,3667.1,2.72689]
[1718026294098,0.07384985,3667.8,3667.2,3.0]
[1718026295593,0.07384985,3667.8,3667.3,2.72679]
[1718026295898,0.07384985,3667.8,3667.4,3.0]
[1718026297114,0.07384985,3667.8,3667.5,2.72664]
[1718026297407,8.1688,3668.1,3667.9,2.72634]
[1718026297776,0.07293985,3668.0,3667.9,2.72634]
[1718026298660,8.24173985,3668.0,3667.9,2.72634]
[1718026304008,8.24173985,3668.0,3667.6,2.72652]
[1718026308004,8.79500551,3668.0,3667.4,3.0]
[1718026308168,0.803,3667.7,3667.4,3.0]
[1718026308368,8.1688,3667.6,3667.4,3.0]
[1718026308601,8.24187318,3667.6,3667.4,3.0]
[1718026311008,0.803,3667.5,3667.3,2.72679]
[1718026311309,0.97746773,3667.4,3667.0,2.72698]
[1718026311610,0.803,3667.1,3666.7,2.72718]
[1718026311766,8.1688,3667.0,3666.4,0.00182723]
[1718026311964,0.803,3666.5,3666.4,0.00182723]
[1718026312166,8.9718,3666.5,3666.4,0.00182723]
[1718026312366,8.9718,3666.5,3665.7,2.72796]
[1718026312367,9.94168793,3666.5,3665.7,2.72796]
[1718026312668,0.803,3665.9,3665.7,2.72796]
[1718026312873,0.803,3665.9,3664.9,0.85629732]
[1718026312874,0.07264993,3665.8,3665.3,2.72822]
[1718026313073,0.803,3665.6,3665.3,2.72822]
[1718026313701,0.07264993,3665.5,3665.3,2.72822]
[1718026314709,0.803,3665.8,3665.4,3.0]
[1718026315074,3.4796,3665.9,3665.4,3.0]
[1718026318916,3.82756,3665.9,3665.0,2.72849]
[1718026319086,3.82756,3665.9,3665.1,3.0]
[1718026319087,8.1688,3665.8,3665.1,3.0]
[1718026320021,8.1688,3665.8,3665.2,2.72833]
[1718026321332,1.32153428,3665.7,3664.9,2.72858]
[1718026321532,8.1688,3665.6,3664.9,2.72858]
[1718026324333,3.7557,3665.4,3664.6,5.72878]
[1718026324633,8.1688,3665.3,3664.6,5.72878]
[1718026324837,9.634065,3665.3,3664.2,0.00182833]
[1718026325134,2.72848,3665.1,3664.3,2.72899]
[1718026325428,3.4615,3664.9,3664.3,2.72899]
[1718026325639,1.490878,3664.8,3664.3,2.72899]
[1718026325841,3.4615,3664.9,3664.3,2.72899]
[1718026326137,3.4615,3664.9,3664.1,2.25536121]
[1718026326311,8.1688,3665.0,3664.8,2.72864]
[1718026326511,8.1688,3665.0,3664.9,3.7042]
[1718026326932,8.1688,3665.0,3664.9,6.7042]
[1718026327114,8.1688,3665.0,3664.9,9.949348]
[1718026327319,2.72704,3667.0,3665.3,2.72822]
[1718026327527,2.72704,3667.0,3665.4,3.0]
[1718026327702,0.06629541,3666.9,3665.4,3.0]
[1718026328032,3.7292,3666.7,3665.4,3.50059135]
[1718026328439,0.06629541,3666.6,3666.0,2.7277]
[1718026329523,0.06629541,3666.6,3666.0,2.6997]
[1718026329730,0.40748289,3666.5,3666.0,2.6997]
[1718026329933,0.06645234,3666.4,3666.0,2.6997]
[1718026330923,0.06645234,3666.4,3666.2,2.72755]
[1718026331133,3.7912,3667.6,3666.9,2.72709]
[1718026331360,0.71817504,3667.5,3666.9,2.72709]
[1718026333938,0.71817504,3667.5,3665.9,5.72783]
[1718026333939,0.71817504,3667.5,3667.2,2.72686]
[1718026334849,0.71817504,3667.5,3666.8,2.7271]
[1718026335353,0.71817504,3667.5,3666.4,3.0]
[1718026335354,0.71817504,3667.5,3667.0,2.72695]
[1718026335528,0.06640004,3667.5,3667.0,2.72695]
[1718026336055,0.06640004,3667.5,3667.3,2.72679]
[1718026336405,3.5698,3668.6,3667.9,2.72633]
[1718026336605,3.5698,3668.6,3668.2,2.72612]
[1718026336901,2.72554,3669.0,3668.2,2.72612]
[1718026337103,3.537,3669.1,3668.2,2.72612]
[1718026337343,3.537,3669.1,3668.4,2.72592]
[1718026337703,6.35539,3669.6,3667.9,1.929]
[1718026338024,0.465409,3669.5,3668.8,2.72562]
[1718026341235,0.465409,3669.5,3668.5,2.7259]
[1718026341236,2.72524,3669.4,3668.5,2.7259]
[1718026341432,0.55,3669.3,3668.5,2.7259]
[1718026341635,0.3740649,3669.2,3668.5,2.7259]
[1718026342330,0.3740649,3669.2,3668.7,2.7257]
[1718026342535,0.465409,3669.5,3669.0,2.72553]
[1718026344718,0.06786929,3669.4,3668.7,2.72574]
[1718026345665,0.06786929,3669.4,3669.1,2.7254]
[1718026346022,2.72443,3670.5,3669.4,2.72518]
[1718026346438,3.7753,3670.6,3669.4,2.72518]
[1718026346439,2.72459,3670.3,3669.4,2.72518]
[1718026346854,2.72472,3670.1,3669.4,2.72518]
[1718026347159,0.06851416,3670.0,3669.4,2.72518]
[1718026348117,3.6046,3669.8,3668.8,5.72567]
[1718026348349,3.36488042,3669.7,3668.8,5.72567]
[1718026348543,0.06853156,3669.6,3668.8,5.72567]
[1718026348944,0.06853156,3669.6,3668.8,3.0]
[1718026348945,2.72518,3669.5,3668.8,3.0]
[1718026349137,0.06844443,3669.4,3668.6,3.0]
[1718026349346,0.47994247,3669.4,3668.6,3.0]
[1718026349549,0.47994247,3669.4,3668.7,2.72573]
[1718026350932,0.47994247,3669.4,3668.6,3.0]
[1718026351159,2.72551,3669.1,3668.2,7.28]
[1718026351465,2.72568,3668.9,3668.2,7.28]
[1718026351834,2.72568,3668.9,3668.1,2.72619]
[1718026351835,0.06784605,3668.8,3668.1,2.72619]
[1718026352742,0.06784605,3668.8,3668.2,3.0]
[1718026352961,0.64406261,3668.7,3668.2,3.0]
[1718026353169,0.06772402,3668.6,3668.2,3.0]
[1718026354038,0.06772402,3668.6,3668.0,3.0]
[1718026358968,0.06772402,3668.6,3668.0,5.72623]
[1718026359370,6.37267,3669.0,3668.0,5.72623]
[1718026359577,0.06725912,3668.5,3668.0,5.72623]
[1718026359735,2.72568,3668.8,3668.0,5.72623]
[1718026359937,0.06725912,3668.7,3668.0,5.72623]
[1718026360136,0.06725912,3668.7,3668.0,3.0]
[1718026360448,2.72548,3669.1,3668.0,3.0]
[1718026360637,2.72548,3669.1,3668.4,2.72594]
[1718026360638,0.30459923,3669.0,3668.4,2.72594]
[1718026360841,0.37203272,3669.0,3668.4,2.72594]
[1718026362431,0.37203272,3669.0,3668.7,2.72576]
[1718026362432,0.06743349,3669.0,3668.7,2.72576]
[1718026362961,2.72514,3669.6,3668.7,2.72576]
[1718026362962,0.06535188,3668.9,3668.7,2.72576]
[1718026363160,2.72514,3669.6,3668.7,2.72576]
[1718026363364,0.06535188,3669.5,3668.7,2.72576]
[1718026363571,0.27904919,3669.4,3668.7,2.72576]
[1718026363967,0.06535188,3669.3,3668.7,2.72576]
[1718026364166,0.06535188,3669.3,3668.9,2.72558]
[1718026366669,0.06535188,3669.3,3668.6,2.72578]
[1718026367071,0.27904919,3669.4,3668.6,2.72578]
[1718026367244,0.30041892,3669.3,3668.6,2.72578]
[1718026367445,0.06535188,3669.3,3668.6,2.72578]
[1718026367646,8.1767,3669.2,3668.6,2.72578]
[1718026367977,0.06553801,3669.1,3668.6,2.72578]
[1718026369291,0.06553801,3669.1,3668.8,2.72565]
[1718026370051,8.1767,3669.2,3669.1,2.72546]
[1718026372067,8.24259861,3669.2,3669.1,2.72546]
[1718026372886,8.24259861,3669.2,3668.8,2.72567]
[1718026379684,8.1767,3669.2,3668.8,2.72567]
[1718026380081,0.06589861,3669.1,3668.8,2.72567]
[1718026382011,0.89015847,3669.1,3668.5,2.72585]
[1718026382313,0.89015847,3669.1,3668.6,3.0]
[1718026382511,8.1767,3669.0,3668.6,3.0]
[1718026382872,0.06606144,3668.9,3668.6,3.0]
[1718026383074,0.06606144,3668.9,3668.7,2.72576]
[1718026383277,0.06606144,3668.9,3668.6,3.0]
[1718026383521,0.06606144,3668.9,3668.5,3.0]
[1718026384333,0.06606144,3668.9,3668.6,2.72582]
[1718026385285,8.1767,3669.0,3668.8,2.72567]
[1718026386330,8.64110841,3669.0,3668.8,2.72567]
[1718026388802,8.64110841,3669.0,3668.5,5.72584]
[1718026389535,8.64110841,3669.0,3668.5,2.72584]
[1718026389851,0.06365064,3668.9,3668.5,2.72584]
[1718026390493,0.06356914,3668.9,3668.5,2.72584]
[1718026391851,0.06356914,3668.9,3668.4,7.28]
[1718026392008,4.37286888,3668.9,3668.0,10.28]
[1718026392211,11.8782,3668.8,3668.0,10.28]
[1718026392521,11.94066113,3668.8,3668.0,10.28]
[1718026392723,2.72576,3668.7,3668.0,10.28]
[1718026392923,8.1767,3668.6,3668.0,7.28]
[1718026393147,9.64334211,3668.6,3668.0,7.28]
[1718026393455,0.06246113,3668.5,3668.0,7.28]
[1718026393944,2.78842113,3668.5,3668.0,7.28]
[1718026394144,2.78842113,3668.5,3667.6,5.72655]
[1718026394370,1.24317632,3668.4,3667.7,3.0]